[Event "Fagernes Chess Open 2024"]
[Site "Fagernes"]
[Date "2024.03.31"]
[Round "9.5"]
[White "Rolstad, Morten"]
[Black "Yilmaz, Kazim"]
[Result "1/2-1/2"]
[ECO "C55"]
[WhiteElo "1879"]
[BlackElo "1805"]
[Annotator "NA RC COMBH"]
[PlyCount "128"]
[EventDate "2024.03.25"]
[EventType "swiss"]
[EventCountry "NOR"]
[SourceTitle "playchess.com"]
[Source "ChessBase"]
[SourceQuality "1"]
[TimeControl "40/6000+30:2400+30"]

1. e4 {[%emt 0:00:04]} e5 {[%emt 0:00:05]} 2. Nf3 {[%emt 0:00:27]} Nc6 {[%emt 0:00:07]} 3. Bc4 {[%emt 0:01:23]} Bc5 {[%emt 0:00:50]} 4. O-O {[%emt 0:02:21]} Nf6 {[%emt 0:00:23]} 5. d3 {[%emt 0:00:16]} d6 {[%emt 0:00:13]} 6. c3 {[%emt 0:00:37]} Bg4 {[%emt 0:00:47]} 7. h3 {[%emt 0:00:42]} Bh5 {[%emt 0:01:22]} 8. Re1 {[%emt 0:02:17]} O-O {[%emt 0:00:26]} 9. Nbd2 {[%emt 0:00:15]} d5 {[%emt 0:05:07]} 10. exd5 {[%emt 0:01:06]} Nxd5 {[%emt 0:00:07]} 11. Ne4 {[%emt 0:02:08]} Be7 {[%emt 0:02:51]} 12. Ng3 {[%emt 0:05:06] C55: Two Knights: 4 d3, 4 d4 exd4 5 e5 and Max Lange Attack.} Bxf3 {[%emt 0:05:17]} 13. Qxf3 {[%emt 0:00:30]} Nb6 {[%emt 0:07:56]} 14. Bb3 {[%emt 0:04:02]} Bg5 {[%emt 0:02:44]} 15. Nf5 {[%emt 0:10:36]} Bxc1 {[%emt 0:02:46]} 16. Raxc1 {[%emt 0:00:37]} Qf6 {[%emt 0:03:26]} 17. Re3 {[%emt 0:16:31]} Kh8 {[%emt 0:09:40]} 18. Rce1 {[%emt 0:06:12]} g6 {[%emt 0:01:44]} 19. Nd4 {[%emt 0:09:33]} Qxf3 {[%emt 0:02:12]} 20. Nxf3 {[%emt 0:00:11]} f6 {[%emt 0:00:48]} 21. d4 {[%emt 0:08:12]} exd4 {[%emt 0:03:12]} 22. Nxd4 {[%emt 0:02:22]} Nxd4 {[%emt 0:03:37]} 23. cxd4 {[%emt 0:00:10]} Rad8 {[%emt 0:00:49]} 24. Re7 {[%emt 0:00:56]} Rd7 {[%emt 0:03:23]} 25. Rxd7 {[%emt 0:03:30]} Nxd7 {[%emt 0:00:07]} 26. Re7 {[%emt 0:00:17]} Rd8 {[%emt 0:00:54]} 27. Be6 {[%emt 0:03:41]} Nf8 {[%emt 0:01:21]} 28. d5 {[%emt 0:00:52]} c6 {[%emt 0:05:59]} 29. dxc6 {[%emt 0:03:34]} bxc6 {[%emt 0:00:39]} 30. Bb3 {[%emt 0:01:35]} Rd7 {[%emt 0:05:22]} 31. Re8 {[%emt 0:00:16]} Kg7 {[%emt 0:00:18]} 32. Rc8 {[%emt 0:01:32]} g5 {[%emt 0:08:30]} 33. Rxc6 {[%emt 0:04:02]} Ng6 {[%emt 0:00:54]} 34. Bc2 {[%emt 0:09:52]} Nf4 {[%emt 0:03:29]} 35. Bb3 {[%emt 0:10:46]} h5 {[%emt 0:09:21]} 36. Bc4 {[%emt 0:00:42]} Rd1+ {[%emt 0:02:05]} 37. Kh2 {[%emt 0:00:23]} Rd2 {[%emt 0:01:10]} 38. Kg3 {[%emt 0:01:14]} h4+ {[%emt 0:04:20]} 39. Kf3 {[%emt 0:00:35]} Ng6 {[%emt 0:00:27]} 40. Rc7+ {[%emt 0:00:19]} Kh8 {[%emt 0:02:52]} 41. Bb3 {[%emt 0:03:53]} Ne5+ {[%emt 0:05:59]} 42. Ke3 {[%emt 0:02:27]} Rxb2 {[%emt 0:02:01]} 43. Rxa7 {[%emt 0:02:24]} Rb1 {[%emt 0:01:27]} 44. Ke4 {[%emt 0:05:34]} Rb2 {[%emt 0:05:35]} 45. f4 {[%emt 0:11:00]} gxf4 {[%emt 0:02:11]} 46. Kf5 {[%emt 0:00:29]} Rxg2 {[%emt 0:01:43]} 47. Kxf6 {[%emt 0:05:17]} Re2 {[%emt 0:07:31]} 48. Kg5 {[%emt 0:01:36]} Rg2+ {[%emt 0:09:03]} 49. Kxf4 {[%emt 0:01:43]} Nd3+ {[%emt 0:01:52]} 50. Kf5 {[%emt 0:01:03]} Nf2 {[%emt 0:02:05]} 51. Ra4 {[%emt 0:03:16]} Kg7 {[%emt 0:03:16]} 52. Rxh4 {[%emt 0:01:55]} Rg3 {[%emt 0:00:28]} 53. Kf4 {[%emt 0:02:14]} Rd3 {[%emt 0:04:35]} 54. Be6 {[%emt 0:02:42]} Rd4+ {[%emt 0:02:56]} 55. Kg5 {[%emt 0:02:05]} Ne4+ {[%emt 0:00:29]} 56. Kh5 {[%emt 0:00:31]} Nf6+ {[%emt 0:01:16]} 57. Kg5 {[%emt 0:00:10]} Nh7+ {[%emt 0:01:19]} 58. Rxh7+ {[%emt 0:00:34]} Kxh7 {[%emt 0:00:08]} 59. Kf6 {[%emt 0:00:26]} Ra4 {[%emt 0:01:06]} 60. Ke5 {[%emt 0:00:52]} Kh6 {[%emt 0:00:13]} 61. Kd6 {[%emt 0:00:23]} Kh5 {[%emt 0:00:27]} 62. Kc5 {[%emt 0:00:14]} Kh4 {[%emt 0:00:26]} 63. Kb5 {[%emt 0:00:41]} Rxa2 {[%emt 0:01:04]} 64. Bxa2 {[%emt 0:00:31]} Kxh3 $11 {[%emt 0:00:04]} 1/2-1/2

[Event "Fagernes Chess Open 2024"]
[Site "Fagernes"]
[Date "2024.03.31"]
[Round "9.6"]
[White "Ali, Karim"]
[Black "Brattgjerd, August Minh"]
[Result "0-1"]
[ECO "C00"]
[WhiteElo "1855"]
[BlackElo "1689"]
[Annotator "NA RC COMBH"]
[PlyCount "44"]
[EventDate "2024.03.25"]
[EventType "swiss"]
[EventCountry "NOR"]
[SourceTitle "playchess.com"]
[Source "ChessBase"]
[SourceQuality "1"]
[TimeControl "40/6000+30:2400+30"]

1. e4 {[%emt 0:08:38]} e6 {[%emt 0:00:07]} 2. d3 {[%emt 0:00:36]} d5 {[%emt 0:00:05]} 3. Nd2 {[%emt 0:00:14]} Nf6 {[%emt 0:00:05]} 4. Ngf3 {[%emt 0:00:09]} c5 {[%emt 0:01:06]} 5. g3 {[%emt 0:00:12]} Nc6 {[%emt 0:00:37]} 6. Bg2 {[%emt 0:00:05]} Be7 {[%emt 0:00:17]} 7. O-O {[%emt 0:00:06]} O-O {[%emt 0:00:18]} 8. Re1 {[%emt 0:00:14]} Qc7 {[%emt 0:02:06]} 9. c3 {[%emt 0:01:49]} dxe4 {[%emt 0:08:03]} 10. dxe4 {[%emt 0:00:36]} Rd8 {[%emt 0:00:32]} 11. Qc2 {[%emt 0:03:21]} b6 {[%emt 0:01:03]} 12. Nf1 {[%emt 0:07:01]} Ba6 {[%emt 0:01:09]} 13. e5 {[%emt 0:20:26]} Nd5 {[%emt 0:01:07]} 14. Bg5 {[%emt 0:17:05]} h6 {[%emt 0:04:34]} 15. Bxe7 {[%emt 0:00:31]} Ndxe7 {[%emt 0:00:13]} 16. Rad1 {[%emt 0:05:25]} Rxd1 {[%emt 0:01:06]} 17. Rxd1 {[%emt 0:00:21]} Ng6 {[%emt 0:02:04]} 18. Re1 {[%emt 0:14:42]} Rd8 {[%emt 0:00:53]} 19. Qe4 {[%emt 0:01:33]} Bb7 {[%emt 0:05:32]} 20. Qe3 {[%emt 0:00:48]} Qd7 {[%emt 0:02:46]} 21. N1d2 {[%emt 0:01:59]} Ncxe5 {[%emt 0:03:57]} 22. Nxe5 {[%emt 0:00:23]} Nxe5 {[%emt 0:00:08]} 0-1

[Event "Fagernes Chess Open 2024"]
[Site "Fagernes"]
[Date "2024.03.31"]
[Round "9.7"]
[White "Sushrutha, Reddy"]
[Black "Nordahl, Frederik"]
[Result "1-0"]
[ECO "B12"]
[WhiteElo "1707"]
[BlackElo "1675"]
[Annotator "NA RC COMBH"]
[PlyCount "97"]
[EventDate "2024.03.25"]
[EventType "swiss"]
[EventCountry "NOR"]
[SourceTitle "playchess.com"]
[Source "ChessBase"]
[SourceQuality "1"]
[TimeControl "40/6000+30:2400+30"]

1. e4 {[%emt 0:22:39]} c6 {[%emt 0:00:18]} 2. d4 {[%emt 0:00:15]} d5 {[%emt 0:00:04]} 3. e5 {[%emt 0:00:05]} c5 {[%emt 0:00:04]} 4. dxc5 {[%emt 0:00:22]} e6 {[%emt 0:00:07]} 5. b4 {[%emt 0:00:48]} Bd7 {[%emt 0:02:46]} 6. a3 {[%emt 0:00:32]} a5 {[%emt 0:01:07]} 7. Bb2 {[%emt 0:00:10]} axb4 {[%emt 0:00:17]} 8. axb4 {[%emt 0:00:14]} Rxa1 {[%emt 0:00:34]} 9. Bxa1 {[%emt 0:00:02]} b6 {[%emt 0:01:04]} 10. Bd4 {[%emt 0:03:58]} bxc5 {[%emt 0:00:35]} 11. bxc5 {[%emt 0:00:13]} Nc6 {[%emt 0:02:38]} 12. Nf3 {[%emt 0:03:39]} Nxd4 {[%emt 0:01:32]} 13. Qxd4 {[%emt 0:02:43]} Qa5+ {[%emt 0:01:25]} 14. Qc3 {[%emt 0:00:26]} Qxc5 {[%emt 0:02:13]} 15. Bd3 {[%emt 0:00:50]} Qxc3+ {[%emt 0:00:41]} 16. Nxc3 {[%emt 0:00:02]} Bb4 {[%emt 0:00:14]} 17. Kd2 {[%emt 0:00:09]} Ne7 {[%emt 0:00:10]} 18. Rb1 {[%emt 0:00:19]} Bxc3+ {[%emt 0:01:52]} 19. Kxc3 {[%emt 0:00:17]} O-O {[%emt 0:01:31]} 20. Rb7 {[%emt 0:00:12]} Rd8 {[%emt 0:00:08]} 21. Nd4 {[%emt 0:00:43]} h6 {[%emt 0:02:06]} 22. f4 {[%emt 0:00:30]} Kf8 {[%emt 0:05:59]} 23. g3 {[%emt 0:00:46]} h5 {[%emt 0:01:30]} 24. Kb2 {[%emt 0:01:48]} g6 {[%emt 0:01:18]} 25. Kc1 {[%emt 0:01:22]} Ke8 {[%emt 0:00:12]} 26. Kd2 {[%emt 0:00:13]} Nf5 {[%emt 0:01:28]} 27. Nf3 {[%emt 0:00:45]} Kf8 {[%emt 0:02:20]} 28. Ng5 {[%emt 0:00:42]} Kg8 {[%emt 0:00:11]} 29. Ke2 {[%emt 0:00:48]} Be8 {[%emt 0:00:22]} 30. Kf2 {[%emt 0:01:25]} Rc8 {[%emt 0:00:27]} 31. Ke2 {[%emt 0:01:40]} Rd8 {[%emt 0:01:04]} 32. Kd2 {[%emt 0:00:23]} Rc8 {[%emt 0:00:08]} 33. Kc1 {[%emt 0:01:40]} Rd8 {[%emt 0:01:00]} 34. Kb2 {[%emt 0:00:34]} Rc8 {[%emt 0:00:13]} 35. Kb3 {[%emt 0:00:28]} Nd4+ {[%emt 0:00:11]} 36. Kb2 {[%emt 0:00:28]} Nf5 {[%emt 0:00:33]} 37. Rb4 {[%emt 0:00:21]} Ra8 {[%emt 0:00:24]} 38. c4 {[%emt 0:01:11]} dxc4 {[%emt 0:00:07]} 39. Bxc4 {[%emt 0:01:58]} Ng7 {[%emt 0:00:19]} 40. Rb6 {[%emt 0:01:16]} Rd8 {[%emt 0:00:56]} 41. Ne4 {[%emt 0:40:44]} Kf8 {[%emt 0:40:39]} 42. Kc3 {[%emt 0:00:41]} Ra8 {[%emt 0:00:48]} 43. Bd3 {[%emt 0:00:31]} Rc8+ {[%emt 0:00:08]} 44. Kd2 {[%emt 0:00:21]} Ra8 {[%emt 0:00:37]} 45. Nd6 {[%emt 0:00:16]} Ra2+ {[%emt 0:00:34]} 46. Kc3 {[%emt 0:00:54]} Ra3+ {[%emt 0:00:07]} 47. Kc2 {[%emt 0:00:32]} Ra8 {[%emt 0:01:29]} 48. Be4 {[%emt 0:00:38]} Rc8+ {[%emt 0:00:14]} 49. Nxc8 {[%emt 0:00:04]} 1-0

[Event "Fagernes Chess Open 2024"]
[Site "Fagernes"]
[Date "2024.03.31"]
[Round "9.8"]
[White "Agustsson, Hafsteinn"]
[Black "Damiano, Sophie"]
[Result "1-0"]
[ECO "B10"]
[WhiteElo "1825"]
[BlackElo "1691"]
[Annotator "NA RC COMBH"]
[PlyCount "101"]
[EventDate "2024.03.25"]
[EventType "swiss"]
[EventCountry "NOR"]
[SourceTitle "playchess.com"]
[Source "ChessBase"]
[SourceQuality "1"]
[TimeControl "40/6000+30:2400+30"]

1. e4 {[%emt 0:00:30]} c6 {[%emt 0:01:59]} 2. d3 {[%emt 0:00:12]} d5 {[%emt 0:00:45]} 3. Nd2 {[%emt 0:00:13]} e5 {[%emt 0:08:29]} 4. Ngf3 {[%emt 0:00:19]} Bd6 {[%emt 0:01:19]} 5. d4 {[%emt 0:00:27]} exd4 {[%emt 0:05:34]} 6. exd5 {[%emt 0:00:29]} cxd5 {[%emt 0:03:54]} 7. Nxd4 {[%emt 0:00:25]} Nc6 {[%emt 0:00:37]} 8. N2f3 {[%emt 0:00:29]} Nge7 {[%emt 0:05:47]} 9. Be2 {[%emt 0:06:12]} O-O {[%emt 0:01:39]} 10. O-O {[%emt 0:00:09]} a6 {[%emt 0:04:25]} 11. a3 {[%emt 0:10:53]} Qc7 {[%emt 0:02:22]} 12. g3 {[%emt 0:05:24]} Bh3 {[%emt 0:01:14]} 13. Re1 {[%emt 0:00:07]} h6 {[%emt 0:01:33]} 14. b4 {[%emt 0:06:23]} Nxd4 {[%emt 0:14:47]} 15. Nxd4 {[%emt 0:15:56]} Nc6 {[%emt 0:21:07]} 16. Bf3 {[%emt 0:13:51]} Rfe8 {[%emt 0:11:00]} 17. Be3 {[%emt 0:09:57]} Be5 {[%emt 0:05:44]} 18. Qd2 {[%emt 0:03:25]} Rad8 {[%emt 0:03:03]} 19. c3 {[%emt 0:04:29]} Qd6 {[%emt 0:05:46]} 20. Nxc6 {[%emt 0:02:57]} bxc6 {[%emt 0:00:42]} 21. Bd4 {[%emt 0:00:11]} Qf6 {[%emt 0:02:31]} 22. Bg2 {[%emt 0:00:22]} Bxg2 {[%emt 0:01:24]} 23. Kxg2 {[%emt 0:00:10]} Bxd4 {[%emt 0:00:42]} 24. Qxd4 {[%emt 0:01:38]} Qxd4 {[%emt 0:02:12]} 25. cxd4 {[%emt 0:00:07]} Re4 {[%emt 0:02:09]} 26. Rac1 {[%emt 0:06:36]} Rd6 {[%emt 0:00:58]} 27. Rcd1 {[%emt 0:00:24]} Rde6 {[%emt 0:00:21]} 28. Rxe4 {[%emt 0:00:09]} dxe4 {[%emt 0:00:58]} 29. Rc1 {[%emt 0:08:17]} e3 {[%emt 0:01:14]} 30. fxe3 {[%emt 0:00:34]} Rxe3 {[%emt 0:00:03]} 31. Rxc6 {[%emt 0:00:07]} Rxa3 {[%emt 0:00:13]} 32. Rc8+ {[%emt 0:02:04]} Kh7 {[%emt 0:00:04]} 33. Rc6 {[%emt 0:02:17]} Rb3 {[%emt 0:01:40]} 34. Rb6 {[%emt 0:00:13]} Rd3 {[%emt 0:00:31]} 35. Rxa6 {[%emt 0:02:13]} Rxd4 {[%emt 0:00:04]} 36. Rb6 {[%emt 0:00:15]} f6 {[%emt 0:00:54]} 37. Rb8 {[%emt 0:00:23]} Kg6 {[%emt 0:00:13]} 38. b5 {[%emt 0:00:12]} Rb4 {[%emt 0:00:03]} 39. Kf3 {[%emt 0:01:43]} Kf5 {[%emt 0:00:33]} 40. b6 {[%emt 0:00:46]} Ke6 {[%emt 0:00:12]} 41. b7 {[%emt 0:40:11]} Kd7 {[%emt 0:40:25]} 42. Rg8 {[%emt 0:00:10]} Rxb7 {[%emt 0:00:00]} 43. Rxg7+ {[%emt 0:00:00]} Kc8 {[%emt 0:00:00]} 44. Rxb7 {[%emt 0:00:00]} Kxb7 {[%emt 0:00:00]} 45. Kf4 {[%emt 0:00:00]} Kc6 {[%emt 0:00:00]} 46. Kf5 {[%emt 0:00:00]} Kd7 {[%emt 0:00:00]} 47. Kxf6 {[%emt 0:00:00]} Ke8 {[%emt 0:00:00]} 48. Kg6 {[%emt 0:00:00]} h5 {[%emt 0:00:00]} 49. Kxh5 {[%emt 0:00:00]} Kf7 {[%emt 0:00:00]} 50. Kg5 {[%emt 0:00:00]} Kg7 {[%emt 0:00:00]} 51. Kf5 {[%emt 0:00:00]} 1-0

[Event "Fagernes Chess Open 2024"]
[Site "Fagernes"]
[Date "2024.03.31"]
[Round "9.9"]
[White "Shehzad, Alina"]
[Black "Skogholt, Steinar Dieseth"]
[Result "1/2-1/2"]
[ECO "B13"]
[WhiteElo "1670"]
[BlackElo "1611"]
[Annotator "NA RC COMBH"]
[PlyCount "43"]
[EventDate "2024.03.25"]
[EventType "swiss"]
[EventCountry "NOR"]
[SourceTitle "playchess.com"]
[Source "ChessBase"]
[SourceQuality "1"]
[TimeControl "40/6000+30:2400+30"]

1. e4 {[%emt 0:00:46]} c6 {[%emt 0:00:25]} 2. d4 {[%emt 0:00:21]} d5 {[%emt 0:00:09]} 3. exd5 {[%emt 0:00:50]} cxd5 {[%emt 0:00:09]} 4. Bd3 {[%emt 0:00:06]} Nc6 {[%emt 0:00:34]} 5. c3 {[%emt 0:00:10]} Nf6 {[%emt 0:01:07]} 6. Bf4 {[%emt 0:02:55]} Bg4 {[%emt 0:05:02]} 7. Qb3 {[%emt 0:03:28]} Qc8 {[%emt 0:07:23]} 8. Nd2 {[%emt 0:03:13]} e6 {[%emt 0:05:48]} 9. Ngf3 {[%emt 0:03:24]} Bh5 {[%emt 0:08:18]} 10. O-O {[%emt 0:09:08]} Bg6 {[%emt 0:06:12]} 11. Bxg6 {[%emt 0:12:49]} hxg6 {[%emt 0:00:10]} 12. h3 {[%emt 0:00:55]} Be7 {[%emt 0:09:37]} 13. Rfe1 {[%emt 0:03:37]} O-O {[%emt 0:02:47]} 14. Ne5 {[%emt 0:12:01]} Nxe5 {[%emt 0:03:03]} 15. Bxe5 {[%emt 0:04:45]} Nd7 {[%emt 0:02:11]} 16. Bg3 {[%emt 0:04:37]} Nb6 {[%emt 0:03:06]} 17. Re2 {[%emt 0:11:57]} Qd7 {[%emt 0:07:18]} 18. Nf3 {[%emt 0:04:28]} Nc4 {[%emt 0:00:55]} 19. Ne5 {[%emt 0:00:33]} Nxe5 {[%emt 0:00:38]} 20. Bxe5 {[%emt 0:00:08]} b6 {[%emt 0:00:41]} 21. Rae1 {[%emt 0:03:56]} Bd6 {[%emt 0:02:41]} 22. Bxd6 {[%emt 0:00:56]} 1/2-1/2

[Event "Fagernes Chess Open 2024"]
[Site "Fagernes"]
[Date "2024.03.31"]
[Round "9.10"]
[White "Lahlum, Ida"]
[Black "Smedsrud, Morten S"]
[Result "1-0"]
[ECO "A07"]
[WhiteElo "1755"]
[BlackElo "1668"]
[Annotator "NA RC COMBH"]
[PlyCount "81"]
[EventDate "2024.03.25"]
[EventType "swiss"]
[EventCountry "NOR"]
[SourceTitle "playchess.com"]
[Source "ChessBase"]
[SourceQuality "1"]
[TimeControl "40/6000+30:2400+30"]

1. Nf3 {[%emt 0:00:03]} d5 {[%emt 0:05:48]} 2. g3 {[%emt 0:00:06]} Bf5 {[%emt 0:01:27]} 3. d3 {[%emt 0:01:03]} Nf6 {[%emt 0:02:13]} 4. Bg2 {[%emt 0:00:35]} Nbd7 {[%emt 0:04:48]} 5. Nbd2 {[%emt 0:03:01]} e5 {[%emt 0:04:23]} 6. O-O {[%emt 0:02:53]} Bd6 {[%emt 0:07:07]} 7. Re1 {[%emt 0:02:53]} Be6 {[%emt 0:06:07]} 8. c4 {[%emt 0:09:46]} c6 {[%emt 0:03:12]} 9. h3 {[%emt 0:11:19]} Nf8 {[%emt 0:07:57]} 10. b3 {[%emt 0:06:22]} Ng6 {[%emt 0:04:23]} 11. Bb2 {[%emt 0:05:07]} Qd7 {[%emt 0:08:18]} 12. Ng5 {[%emt 0:03:48]} h6 {[%emt 0:04:40]} 13. Nxe6 {[%emt 0:00:44]} fxe6 {[%emt 0:00:15]} 14. Rc1 {[%emt 0:06:42]} Qf7 {[%emt 0:04:43]} 15. e3 {[%emt 0:03:17]} Kd7 {[%emt 0:06:10]} 16. d4 {[%emt 0:04:06]} e4 {[%emt 0:02:12]} 17. c5 {[%emt 0:07:58]} Bc7 {[%emt 0:01:10]} 18. b4 {[%emt 0:00:30]} a6 {[%emt 0:01:08]} 19. a4 {[%emt 0:01:13]} Ne7 {[%emt 0:05:42]} 20. Qe2 {[%emt 0:02:14]} h5 {[%emt 0:07:03]} 21. Ra1 {[%emt 0:04:33]} Nf5 {[%emt 0:04:26]} 22. b5 {[%emt 0:01:38]} axb5 {[%emt 0:05:21]} 23. axb5 {[%emt 0:00:12]} Ke7 {[%emt 0:07:05]} 24. b6 {[%emt 0:02:55]} Rxa1 {[%emt 0:01:10]} 25. Rxa1 {[%emt 0:00:08]} Bb8 {[%emt 0:01:09]} 26. Qe1 {[%emt 0:03:23]} Nd7 {[%emt 0:00:38]} 27. Nb3 {[%emt 0:02:56]} Qe8 {[%emt 0:01:20]} 28. Qa5 {[%emt 0:07:10]} Qc8 {[%emt 0:02:22]} 29. Qa8 {[%emt 0:02:09]} Bxg3 {[%emt 0:01:02]} 30. Qxc8 {[%emt 0:00:24]} Bxf2+ {[%emt 0:00:23]} 31. Kxf2 {[%emt 0:00:35]} Rxc8 {[%emt 0:00:25]} 32. Ra7 {[%emt 0:00:52]} Rf8 {[%emt 0:00:39]} 33. Ke2 {[%emt 0:06:03]} Ng3+ {[%emt 0:00:18]} 34. Ke1 {[%emt 0:00:31]} Nf5 {[%emt 0:00:30]} 35. Bc1 {[%emt 0:00:33]} e5 {[%emt 0:00:32]} 36. Rxb7 {[%emt 0:01:12]} exd4 {[%emt 0:00:24]} 37. Nxd4 {[%emt 0:01:19]} Nxd4 {[%emt 0:00:47]} 38. exd4 {[%emt 0:00:11]} Rc8 {[%emt 0:01:12]} 39. Bf4 {[%emt 0:01:03]} Ke6 {[%emt 0:00:28]} 40. Rxd7 {[%emt 0:02:25]} Kxd7 {[%emt 0:00:36]} 41. b7 {[%emt 0:40:07]} 1-0